fUSD/lending_fUSD_20250505
["ID","MTS","AMOUNT","RATE_DAILY","PERIOD"]
[359951391,1746445858142,-450.0,0.00019897,2]
[359951393,1746445858152,-450.0,0.00019897,2]
[359951395,1746445858162,-450.0,0.00019897,2]
[359951397,1746445858171,-658.02,0.00019897,2]
[359951399,1746445858181,-450.0,0.00019897,2]
[359951401,1746445858190,-452.44,0.00019897,2]
[359951403,1746445858200,-665.04,0.00019897,2]
[359951405,1746445858209,-450.0,0.00019897,2]
[359951407,1746445858218,-639.92,0.00019897,2]
[359951409,1746445858228,-450.0,0.00019897,2]
[359951411,1746445858238,-450.0,0.00019897,2]
[359951413,1746445858247,-717.7,0.00019897,2]
[359951415,1746445858257,-450.0,0.00019897,2]
[359951417,1746445858266,-450.0,0.00019897,2]
[359951419,1746445858276,-765.98,0.00019897,2]
[359951420,1746445858286,-2182.37,0.00019897,2]
[359951421,1746445858295,-450.0,0.00019897,2]
[359951422,1746445858305,-450.0,0.00019898,2]
[359951423,1746445858315,-450.0,0.00019898,2]
[359951424,1746445858324,-450.0,0.00019898,2]
[359951425,1746445858335,-450.0,0.00019898,2]
[359951426,1746445858344,-450.0,0.00019898,2]
[359951427,1746445858357,-299.79,0.00019898,2]
[359951428,1746445858367,-450.0,0.00019898,2]
[359951429,1746445858376,-175.5508467,0.00019898,2]
[359951430,1746445858386,-450.0,0.00019898,2]
[359951431,1746445858395,-561.16,0.00019898,2]
[359951432,1746445858407,-212.76,0.00019898,2]
[359951433,1746445858416,-1091.92,0.00019898,2]
[359951434,1746445858425,-450.0,0.00019898,2]
[359951435,1746445858435,-418.06417946,0.00019898,2]
[359951436,1746445858445,-450.0,0.00019898,2]
[359951437,1746445858455,-450.0,0.00019898,2]
[359951438,1746445858464,-2202.92,0.00019898,2]
[359951439,1746445858474,-440.7923,0.00019898,2]
[359951440,1746445858484,-491.21,0.00019898,2]
[359951441,1746445858494,-2166.89,0.00019898,2]
[359951442,1746445858504,-39784.08,0.00019898,2]
[359951443,1746445858513,-450.0,0.00019898,2]
[359951444,1746445858522,-774.42,0.00019898,2]
[359951445,1746445858532,-3699.69,0.00019898,2]
[359951446,1746445858542,-450.0,0.00019898,2]
[359951447,1746445858551,-450.0,0.00019898,2]
[359951448,1746445858562,-450.0,0.00019898,2]
[359951449,1746445858572,-1801.95,0.00019898,2]
[359951450,1746445858582,-450.0,0.00019898,2]
[359951451,1746445858593,-500.0,0.00019898,2]
[359951452,1746445858602,-450.0,0.00019898,2]
[359951453,1746445858611,-533.94631648,0.00019898,2]
[359951455,1746445858621,-450.0,0.00019898,2]
[359951457,1746445858630,-450.0,0.00019898,2]
[359951459,1746445858640,-661.84,0.00019898,2]
[359951461,1746445858649,-450.0,0.00019898,2]
[359951463,1746445858659,-450.0,0.00019898,2]
[359951465,1746445858668,-667.39,0.00019898,2]
[359951467,1746445858677,-768.14,0.00019898,2]
[359951469,1746445858687,-450.0,0.00019898,2]
[359951471,1746445858697,-408.30843333,0.00019898,2]
[359951473,1746445858706,-558.88,0.00019898,2]
[359951475,1746445858715,-196.66504858,0.00019898,2]
[359951477,1746445858725,-3843.94,0.00019898,2]
[359951479,1746445858734,-450.0,0.00019898,2]
[359951481,1746445858743,-259.36,0.00019898,2]
[359951483,1746445858753,-665.04,0.00019898,2]
[359951485,1746445858763,-4141.73527815,0.00019898,2]
[359951487,1746445858772,-450.0,0.00019898,2]
[359951489,1746445858781,-639.92,0.00019898,2]
[359951491,1746445858790,-450.0,0.00019898,2]
[359951493,1746445858799,-717.7,0.00019898,2]
[359951495,1746445858808,-765.98,0.00019898,2]
[359951497,1746445858818,-450.0,0.00019898,2]
[359951499,1746445858828,-854.02,0.00019898,2]
[359951502,1746445858837,-450.0,0.00019898,2]
[359951503,1746445858846,-199.3360403,0.00019899,2]
[359951505,1746445858856,-788.58785977,0.00019899,2]
[359951507,1746445858865,-450.0,0.00019899,2]
[359951509,1746445858874,-531.49299216,0.00019899,2]
[359951511,1746445858884,-467.42882723,0.00019899,2]
[359951513,1746445858894,-507.81,0.00019899,2]
[359951515,1746445858903,-450.0,0.00019899,2]
[359951517,1746445858912,-450.0,0.00019899,2]
[359951519,1746445858921,-450.0,0.00019899,2]
[359951521,1746445858930,-450.0,0.00019899,2]
[359951523,1746445858940,-450.0,0.00019899,2]
[359951525,1746445858949,-450.0,0.00019899,2]
[359951527,1746445858958,-450.0,0.00019899,2]
[359951529,1746445858967,-473.48,0.00019899,2]
[359951531,1746445858977,-450.0,0.00019899,2]
[359951533,1746445858986,-450.0,0.00019899,2]
[359951535,1746445858995,-450.0,0.00019899,2]
[359951537,1746445859004,-450.0,0.00019899,2]
[359951539,1746445859013,-450.0,0.00019899,2]
[359951541,1746445859022,-450.0,0.00019899,2]
[359951543,1746445859031,-450.0,0.00019899,2]
[359951545,1746445859041,-480.43,0.00019899,2]
[359951547,1746445859050,-259.53,0.00019899,2]
[359951549,1746445859059,-450.0,0.00019899,2]
[359951551,1746445859069,-450.0,0.00019899,2]
[359951553,1746445859078,-500.0,0.00019899,2]
[359951555,1746445859087,-450.0,0.00019899,2]
[359951557,1746445859096,-472.26513516,0.00019899,2]
[359951559,1746445859105,-450.0,0.00019899,2]
[359951561,1746445859115,-450.0,0.00019899,2]
[359951563,1746445859124,-292.66153218,0.00019899,2]
[359951565,1746445859133,-452.94,0.00019899,2]
[359951568,1746445859143,-450.43049376,0.00019899,2]
[359951570,1746445859154,-450.0,0.00019899,2]
[359951572,1746445859163,-450.0,0.00019899,2]
[359951574,1746445859173,-492.40430465,0.00019899,2]
[359951576,1746445859182,-450.0,0.00019899,2]
[359951578,1746445859191,-450.0,0.00019899,2]
[359951580,1746445859200,-450.0,0.00019899,2]
[359951582,1746445859210,-450.0,0.00019899,2]
[359951584,1746445859219,-450.0,0.00019899,2]
[359951586,1746445859228,-450.0,0.00019899,2]
[359951588,1746445859238,-450.0,0.00019899,2]
[359951590,1746445859247,-450.0,0.00019899,2]
[359951592,1746445859257,-450.0,0.00019899,2]
[359951594,1746445859267,-259.78755968,0.00019899,2]
[359951596,1746445859276,-450.0,0.00019899,2]
[359951598,1746445859286,-520.805872,0.00019899,2]
[359951600,1746445859295,-450.0,0.00019899,2]
[359951602,1746445859303,-450.0,0.00019899,2]
[359951604,1746445859312,-450.0,0.00019899,2]
[359951606,1746445859322,-525.05349773,0.00019899,2]
[359951608,1746445859331,-450.0,0.00019899,2]
[359951610,1746445859340,-450.0,0.00019899,2]
[359951611,1746445859350,-450.0,0.00019899,2]
[359951613,1746445859363,-450.0,0.00019899,2]
[359951616,1746445859373,-450.0,0.00019899,2]
[359951618,1746445859382,-450.0,0.00019899,2]
[359951620,1746445859392,-450.0,0.00019899,2]
[359951622,1746445859403,-450.0,0.00019899,2]
[359951624,1746445859412,-450.0,0.00019899,2]
[359951625,1746445859421,-450.0,0.00019899,2]
[359951628,1746445859431,-450.0,0.00019899,2]
[359951630,1746445859441,-450.0,0.00019899,2]
[359951631,1746445859451,-450.0,0.00019899,2]
[359951634,1746445859460,-450.0,0.00019899,2]
[359951636,1746445859470,-450.0,0.00019899,2]
[359951637,1746445859479,-450.0,0.00019899,2]
[359951638,1746445859488,-450.0,0.00019899,2]
[359951639,1746445859498,-531.02,0.00019899,2]
[359951640,1746445859507,-450.0,0.00019899,2]
[359951641,1746445859516,-450.0,0.00019899,2]
[359951642,1746445859525,-228.01425504,0.00019899,2]
[359951643,1746445859535,-450.0,0.00019899,2]
[359951644,1746445859544,-450.0,0.00019899,2]
[359951645,1746445859553,-450.0,0.00019899,2]
[359951646,1746445859562,-450.0,0.00019899,2]
[359951647,1746445859572,-450.0,0.00019899,2]
[359951649,1746445859581,-450.0,0.00019899,2]
[359951651,1746445859591,-450.0,0.00019899,2]
[359951653,1746445859600,-450.0,0.00019899,2]
[359951655,1746445859610,-450.0,0.00019899,2]
[359951657,1746445859619,-450.0,0.00019899,2]
[359951659,1746445859630,-450.0,0.00019899,2]
[359951661,1746445859639,-450.0,0.00019899,2]
[359951663,1746445859649,-450.0,0.00019899,2]
[359951665,1746445859658,-450.0,0.00019899,2]
[359951667,1746445859667,-450.0,0.00019899,2]
[359951669,1746445859676,-450.0,0.00019899,2]
[359951671,1746445859686,-450.0,0.00019899,2]
[359951673,1746445859695,-450.0,0.00019899,2]
[359951675,1746445859704,-357.35317733,0.00019899,2]
[359951677,1746445859713,-450.0,0.00019899,2]
[359951679,1746445859723,-450.0,0.00019899,2]
[359951681,1746445859732,-450.0,0.00019899,2]
[359951683,1746445859742,-450.0,0.00019899,2]
[359951696,1746445859846,-450.0,0.00019899,2]
[359951698,1746445859870,-450.0,0.00019899,2]
[359951700,1746445859879,-450.0,0.00019899,2]
[359951702,1746445859888,-450.0,0.00019899,2]
[359951704,1746445859898,-450.0,0.00019899,2]
[359951706,1746445859907,-450.0,0.00019899,2]
[359951708,1746445859916,-450.0,0.00019899,2]
[359951710,1746445859926,-450.0,0.00019899,2]
[359951712,1746445859935,-450.0,0.00019899,2]
[359951714,1746445859944,-450.0,0.00019899,2]
[359951716,1746445859953,-450.0,0.00019899,2]
[359951718,1746445859962,-450.0,0.00019899,2]
[359951720,1746445859971,-450.0,0.00019899,2]
[359951722,1746445859980,-450.0,0.00019899,2]
[359951724,1746445859991,-450.0,0.00019899,2]
[359951726,1746445860000,-461.61914464,0.00019899,2]
[359951728,1746445860010,-300.0,0.00019899,2]
[359951730,1746445860019,-450.0,0.00019899,2]
[359951732,1746445860028,-450.0,0.00019899,2]
[359951734,1746445860037,-450.0,0.00019899,2]
[359951736,1746445860047,-450.0,0.00019899,2]
[359951738,1746445860056,-450.0,0.00019899,2]
[359951740,1746445860066,-450.0,0.00019899,2]
[359951742,1746445860075,-450.0,0.00019899,2]
[359951744,1746445860084,-450.0,0.00019899,2]
[359951746,1746445860094,-450.0,0.00019899,2]
[359951748,1746445860103,-450.0,0.00019899,2]
[359951750,1746445860113,-450.0,0.00019899,2]
[359951752,1746445860122,-450.0,0.00019899,2]
[359951754,1746445860131,-450.0,0.00019899,2]
[359951756,1746445860140,-450.0,0.00019899,2]
[359951758,1746445860149,-450.0,0.00019899,2]
[359951760,1746445860158,-450.0,0.00019899,2]
[359951762,1746445860167,-450.0,0.00019899,2]
[359951764,1746445860176,-475.97,0.00019899,2]
[359951766,1746445860185,-450.0,0.00019899,2]
[359951767,1746445860195,-450.0,0.00019899,2]
[359951769,1746445860204,-571.74,0.00019899,2]
[359951771,1746445860214,-450.0,0.00019899,2]
[359951773,1746445860225,-450.0,0.00019899,2]
[359951775,1746445860234,-450.0,0.00019899,2]
[359951776,1746445860244,-442.66021005,0.00019899,2]
[359951778,1746445860255,-450.0,0.00019899,2]
[359951779,1746445860264,-450.0,0.00019899,2]
[359951780,1746445860274,-450.0,0.00019899,2]
[359951781,1746445860284,-373.02246416,0.00019899,2]
[359951782,1746445860294,-450.0,0.00019899,2]
[359951783,1746445860306,-450.0,0.00019899,2]
[359951784,1746445860318,-450.0,0.00019899,2]
[359951785,1746445860327,-450.0,0.00019899,2]
[359951786,1746445860337,-450.0,0.00019899,2]
[359951787,1746445860346,-450.0,0.00019899,2]
[359951788,1746445860360,-450.0,0.00019899,2]
[359951789,1746445860370,-450.0,0.00019899,2]
[359951790,1746445860379,-450.0,0.00019899,2]
[359951791,1746445860388,-450.0,0.00019899,2]
[359951792,1746445860399,-462.353672,0.00019899,2]
[359951793,1746445860408,-473.32802568,0.00019899,2]
[359951795,1746445860417,-585.73689668,0.00019899,2]
[359951797,1746445860427,-257.41000253,0.00019899,2]
[359951799,1746445860437,-459.56,0.00019899,2]
[359951801,1746445860447,-450.0,0.00019899,2]
[359951803,1746445860457,-450.0,0.00019899,2]
[359951805,1746445860466,-450.0,0.00019899,2]
[359951807,1746445860476,-488.13872303,0.00019899,2]
[359951809,1746445860486,-450.0,0.00019899,2]
[359951811,1746445860495,-450.0,0.00019899,2]
[359951813,1746445860504,-708.44,0.00019899,2]
[359951815,1746445860514,-527.02489338,0.00019899,2]
[359951817,1746445860524,-450.0,0.00019899,2]
[359951819,1746445860533,-450.0,0.00019899,2]
[359951821,1746445860543,-450.0,0.00019899,2]
[359951823,1746445860552,-450.0,0.00019899,2]
[359951825,1746445860562,-450.0,0.00019899,2]
[359951827,1746445860572,-450.0,0.00019899,2]
[359951829,1746445860581,-464.76,0.00019899,2]
[359951831,1746445860591,-450.0,0.00019899,2]
[359951833,1746445860600,-593.60262284,0.00019899,2]
[359951835,1746445860609,-450.0,0.00019899,2]
[359951837,1746445860618,-450.0,0.00019899,2]
[359951839,1746445860627,-450.0,0.00019899,2]
[359951841,1746445860636,-460.70256392,0.00019899,2]
[359951843,1746445860645,-450.0,0.00019899,2]
[359951845,1746445860654,-478.05290311,0.00019899,2]
[359951847,1746445860663,-450.0,0.00019899,2]
[359951849,1746445860672,-450.0,0.00019899,2]
[359951851,1746445860681,-454.67865262,0.00019899,2]
[359951853,1746445860691,-450.0,0.00019899,2]
[359951855,1746445860700,-450.0,0.00019899,2]
[359951857,1746445860709,-450.0,0.00019899,2]
[359951860,1746445860718,-450.0,0.00019899,2]
[359951861,1746445860727,-918.25,0.00019899,2]
[359951863,1746445860737,-453.35915404,0.00019899,2]
[359951865,1746445860746,-450.0,0.00019899,2]
[359951867,1746445860755,-468.95734355,0.00019899,2]
[359951869,1746445860764,-450.0,0.00019899,2]
[359951871,1746445860774,-450.0,0.00019899,2]
[359951873,1746445860783,-461.66168101,0.00019899,2]
[359951875,1746445860792,-503.49168931,0.00019899,2]
[359951877,1746445860802,-457.10779033,0.00019899,2]
[359951879,1746445860811,-450.0,0.00019899,2]
[359951881,1746445860820,-452.45543836,0.00019899,2]
[359951883,1746445860829,-474.75625511,0.00019899,2]
[359951885,1746445860838,-175.55084669,0.00019899,2]
[359951887,1746445860847,-450.0,0.00019899,2]
[359951889,1746445860857,-450.0,0.00019899,2]
[359951891,1746445860866,-450.0,0.00019899,2]
[359951893,1746445860875,-359.24753339,0.00019899,2]
[359951895,1746445860884,-450.0,0.00019899,2]
[359951897,1746445860893,-555.06,0.00019899,2]
[359951899,1746445860903,-450.0,0.00019899,2]
[359951901,1746445860912,-450.0,0.00019899,2]
[359951903,1746445860922,-451.09638104,0.00019899,2]
[359951905,1746445860932,-450.0,0.00019899,2]
[359951907,1746445860941,-451.02382333,0.00019899,2]
[359951909,1746445860950,-464.25844321,0.00019899,2]
[359951911,1746445860960,-457.6213522,0.00019899,2]
[359951913,1746445860969,-565.07,0.00019899,2]
[359951915,1746445860977,-450.0,0.00019899,2]
[359951917,1746445860987,-450.0,0.00019899,2]
[359951919,1746445860996,-450.0,0.00019899,2]
[359951921,1746445861006,-450.0,0.00019899,2]
[359951923,1746445861015,-502.89792827,0.00019899,2]
[359951925,1746445861025,-450.0,0.00019899,2]
[359951927,1746445861034,-478.72,0.00019899,2]
[359951929,1746445861044,-487.6,0.00019899,2]
[359951931,1746445861054,-440.0,0.00019899,2]
[359951933,1746445861063,-450.0,0.00019899,2]
[359951935,1746445861073,-481.74623044,0.00019899,2]
[359951937,1746445861082,-450.0,0.00019899,2]
[359951939,1746445861091,-450.0,0.00019899,2]
[359951941,1746445861100,-450.0,0.00019899,2]
[359951943,1746445861109,-450.0,0.00019899,2]
[359951945,1746445861118,-450.0,0.00019899,2]
[359951947,1746445861127,-450.0,0.00019899,2]
[359951949,1746445861137,-450.0,0.00019899,2]
[359951951,1746445861146,-450.0,0.00019899,2]
[359951953,1746445861156,-450.0,0.00019899,2]
[359951955,1746445861165,-450.0,0.00019899,2]
[359951957,1746445861174,-463.13278092,0.00019899,2]
[359951959,1746445861184,-450.0,0.00019899,2]
[359951961,1746445861193,-450.0,0.00019899,2]
[359951963,1746445861203,-266.58478295,0.00019899,2]
[359951965,1746445861213,-42923.1,0.00019899,2]
[359951967,1746445861222,-450.0,0.00019899,2]
[359951970,1746445861232,-538.06,0.00019899,2]
[359951972,1746445861242,-450.0,0.00019899,2]
[359951974,1746445861251,-3072.93,0.00019899,2]
[359951975,1746445861261,-450.0,0.00019899,2]
[359951978,1746445861271,-446.49290841,0.00019899,2]
[359951980,1746445861280,-450.0,0.00019899,2]
[359951982,1746445861290,-450.0,0.00019899,2]
[359951983,1746445861300,-450.0,0.00019899,2]
[359951985,1746445861309,-546.89,0.00019899,2]
[359951988,1746445861320,-450.0,0.00019899,2]
[359951990,1746445861330,-450.0,0.00019899,2]
[359951992,1746445861340,-500.0,0.00019899,2]
[359951994,1746445861351,-500.0,0.00019899,2]
[359951995,1746445861361,-452.54,0.00019899,2]
[359951997,1746445861371,-1090.47,0.00019899,2]
[359951999,1746445861381,-450.0,0.00019899,2]
[359952001,1746445861390,-450.0,0.00019899,2]
[359952003,1746445861401,-450.0,0.00019899,2]
[359952005,1746445861411,-513.2,0.00019899,2]
[359952008,1746445861420,-450.0,0.00019899,2]
[359952009,1746445861432,-260.47,0.00019899,2]
[359952011,1746445861442,-181.89,0.00019899,2]
[359952014,1746445861451,-450.0,0.00019899,2]
[359952015,1746445861461,-450.0,0.00019899,2]
[359952017,1746445861471,-450.0,0.00019899,2]
[359952018,1746445861479,-667.39,0.00019899,2]
[359952019,1746445861489,-1303.92,0.00019899,2]
[359952020,1746445861498,-468.95,0.00019899,2]
[359952021,1746445861508,-1083.34,0.00019899,2]
[359952022,1746445861517,-450.0,0.00019899,2]
[359952023,1746445861527,-450.0,0.00019899,2]
[359952024,1746445861536,-558.88,0.00019899,2]
[359952025,1746445861546,-864.03,0.00019899,2]
[359952026,1746445861556,-450.0,0.00019899,2]
[359952027,1746445861565,-3843.94,0.00019899,2]
[359952029,1746445861575,-658.02,0.00019899,2]
[359952031,1746445861585,-450.0,0.00019899,2]
[359952033,1746445861594,-450.0,0.00019899,2]
[359952035,1746445861603,-450.0,0.00019899,2]
[359952037,1746445861612,-450.0,0.00019899,2]
[359952039,1746445861622,-450.0,0.00019899,2]
[359952041,1746445861631,-450.0,0.00019899,2]
[359952043,1746445861641,-450.0,0.00019899,2]
[359952045,1746445861651,-2182.37,0.00019899,2]
[359952047,1746445861660,-450.0,0.00019899,2]
[359952050,1746445861670,-854.02,0.00019899,2]
[359952051,1746445861679,-473.215,0.000199,2]
[359952053,1746445861689,-12500.0,0.000199,2]
[359952055,1746445861697,-5800.0,0.000199,2]
[359952057,1746445861707,-108331.35972527,0.000199,2]
[359952059,1746445861716,-6682.15466765,0.000199,2]
[359952061,1746445861725,-199.3360403,0.000199,2]
[359952063,1746445861735,-10844.03048283,0.000199,2]
[359952065,1746445861744,-175.55084669,0.000199,2]
[359952067,1746445861753,-162.72646426,0.000199,2]
[359952069,1746445861762,-1206.85,0.000199,2]
[359952071,1746445861771,-367.39,0.000199,2]
[359952073,1746445861781,-31940.0256101,0.000199,2]
[359952075,1746445861791,-788.58785977,0.000199,2]
[359952077,1746445861801,-324.52,0.000199,2]
[359952079,1746445861810,-289.7,0.00019918,7]
[359952081,1746445861820,-500.0,0.00019973,2]
[359952082,1746445861830,-500.0,0.00019973,2]
[359952084,1746445861839,-500.0,0.00019973,2]
[359952086,1746445861848,-500.0,0.00019973,2]
[359952088,1746445861858,-500.0,0.00019973,2]
[359952090,1746445861867,-500.0,0.00019973,2]
[359952092,1746445861877,-500.0,0.00019973,2]
[359952094,1746445861886,-503.46840214,0.00019973,2]
[359952096,1746445861895,-504.06511938,0.00019973,2]
[359952098,1746445861905,-500.66162934,0.00019973,2]
[359952100,1746445861914,-500.0,0.00019973,2]
[359952102,1746445861923,-546.78499546,0.00019973,2]
[359952104,1746445861933,-500.46165666,0.00019973,2]
[359952106,1746445861942,-500.0,0.00019973,2]
[359952108,1746445861952,-500.0,0.00019973,2]
[359952110,1746445861961,-500.69231875,0.00019973,2]
[359952112,1746445861970,-500.0,0.00019973,2]
[359952114,1746445861980,-1300.004,0.00019973,2]
[359952116,1746445861989,-925.0,0.00019973,2]
[359952129,1746445861998,-677.045,0.00019973,2]
[359952131,1746445862115,-797.0,0.00019973,2]
[359952133,1746445862124,-1452.0,0.00019973,2]
[359952135,1746445862133,-1242.0,0.00019973,2]
[359952137,1746445862143,-582.0,0.00019973,2]
[359952139,1746445862151,-551.0,0.00019973,2]
[359952141,1746445862160,-915.0,0.00019973,2]
[359952143,1746445862170,-878.0,0.00019973,2]
[359952145,1746445862179,-878.0,0.00019973,2]
[359952147,1746445862188,-150.0,0.00019973,2]
[359952149,1746445862197,-198.0,0.00019973,2]
[359952151,1746445862207,-1141.0,0.00019973,2]
[359952153,1746445862216,-450.0,0.00019979,2]
[359952155,1746445862226,-561.16,0.00019979,2]
[359952157,1746445862235,-1091.92,0.00019979,2]
[359952159,1746445862244,-450.0,0.00019979,2]
[359952161,1746445862254,-2202.92,0.00019979,2]
[359952163,1746445862263,-491.21,0.00019979,2]
[359952165,1746445862273,-2166.89,0.00019979,2]
[359952167,1746445862283,-39784.08,0.00019979,2]
[359952169,1746445862294,-450.0,0.00019979,2]
[359952171,1746445862303,-774.42,0.00019979,2]
[359952173,1746445862313,-3699.69,0.00019979,2]
[359952175,1746445862322,-450.0,0.00019979,2]
[359952177,1746445862331,-1801.95,0.00019979,2]
[359952179,1746445862341,-20274.53217782,0.0001998,2]
[359952181,1746445862351,-468.07711238,0.00019985,2]
[359952183,1746445862364,-531.02,0.00019985,2]
[359952184,1746445862373,-450.0,0.00019985,2]
[359952186,1746445862383,-450.0,0.00019985,2]
[359952188,1746445862392,-450.0,0.00019985,2]
[359952190,1746445862402,-235.52,0.00019985,2]
[359952193,1746445862412,-156.36,0.00019985,2]
[359952195,1746445862421,-450.0,0.00019985,2]
[359952197,1746445862433,-450.0,0.00019985,2]
[359952199,1746445862443,-529.71874333,0.00019985,2]
[359952201,1746445862452,-450.0,0.00019985,2]
[359952203,1746445862462,-42923.1,0.00019985,2]
[359952204,1746445862471,-292.16170776,0.00019985,2]
[359952207,1746445862481,-450.0,0.00019985,2]
[359952208,1746445862491,-3072.93,0.00019985,2]
[359952210,1746445862500,-548.7731892,0.00019985,2]
[359952212,1746445862509,-450.0,0.00019985,2]
[359952214,1746445862519,-450.0,0.00019985,2]
[359952216,1746445862528,-309.01,0.00019985,2]
[359952218,1746445862538,-500.0,0.00019985,2]
[359952220,1746445862548,-452.54,0.00019985,2]
[359952222,1746445862557,-500.0,0.00019985,2]
[359952224,1746445862567,-450.0,0.00019985,2]
[359952226,1746445862576,-450.0,0.00019985,2]
[359952228,1746445862585,-450.0,0.00019985,2]
[359952230,1746445862594,-450.0,0.00019985,2]
[359952232,1746445862604,-661.84,0.00019985,2]
[359952234,1746445862613,-450.0,0.00019985,2]
[359952237,1746445862625,-450.0,0.00019985,2]
[359952238,1746445862634,-450.0,0.00019985,2]
[359952240,1746445862643,-450.0,0.00019985,2]
[359952242,1746445862653,-1303.92,0.00019985,2]
[359952244,1746445862664,-450.0,0.00019985,2]
[359952246,1746445862673,-768.14,0.00019985,2]
[359952248,1746445862682,-450.0,0.00019985,2]
[359952251,1746445862693,-558.88,0.00019985,2]
[359952253,1746445862702,-864.03,0.00019985,2]
[359952255,1746445862711,-450.0,0.00019985,2]
[359952257,1746445862721,-3843.94,0.00019985,2]
[359952259,1746445862730,-450.0,0.00019985,2]
[359952261,1746445862740,-658.02,0.00019985,2]
[359952263,1746445862750,-665.04,0.00019985,2]
[359952265,1746445862759,-450.0,0.00019985,2]
[359952267,1746445862772,-639.92,0.00019985,2]
[359952269,1746445862781,-450.0,0.00019985,2]
[359952271,1746445862791,-450.0,0.00019985,2]
[359952273,1746445862800,-717.7,0.00019985,2]
[359952275,1746445862809,-450.0,0.00019985,2]
[359952277,1746445862818,-450.0,0.00019985,2]
[359952279,1746445862828,-765.98,0.00019985,2]
[359952281,1746445862837,-2182.37,0.00019985,2]
[359952283,1746445862847,-854.02,0.00019985,2]
[359952285,1746445862856,-450.0,0.00019985,2]
[359952287,1746445862865,-139367.6117936,0.00019986,2]
[359952289,1746445862875,-973.0,0.00019986,2]
[359952292,1746445862884,-450.0,0.00019992,2]
[359952293,1746445862893,-450.0,0.00019992,2]
[359952295,1746445862902,-250.771361,0.00019992,2]
[359952297,1746445862911,-450.0,0.00019992,2]
[359952299,1746445862921,-450.0,0.00019992,2]
[359952301,1746445862930,-450.0,0.00019992,2]
[359952303,1746445862939,-160.78,0.00019992,2]
[359952305,1746445862949,-450.0,0.00019992,2]
[359952307,1746445862958,-270.38704527,0.00019992,2]
[359952309,1746445862967,-667.39,0.00019992,2]
[359952311,1746445862977,-450.0,0.00019992,2]
[359952313,1746445862986,-558.88,0.00019992,2]
[359952315,1746445862995,-3843.94,0.00019992,2]
[359952317,1746445863005,-450.0,0.00019992,2]
[359952319,1746445863014,-547.76,0.00019992,2]
[359952321,1746445863024,-854.02,0.00019992,2]
[359952323,1746445863033,-531.02,0.00019993,2]
[359952325,1746445863043,-531.02,0.00019993,2]
[359952327,1746445863052,-450.0,0.00019993,2]
[359952329,1746445863062,-450.0,0.00019993,2]
[359952331,1746445863073,-450.0,0.00019993,2]
[359952334,1746445863083,-450.0,0.00019993,2]
[359952336,1746445863092,-450.0,0.00019993,2]
[359952338,1746445863102,-450.0,0.00019993,2]
[359952339,1746445863112,-450.0,0.00019993,2]